[Event "*** Titled Tuesday Blitz"]
[Site "Chess.com"]
[Date "2019.07.02"]
[Round "5"]
[White "enriquetejedor"]
[Black "monalize"]
[Result "1-0"]
[WhiteElo "2580"]
[BlackElo "2330"]
[TimeControl "180+2"]
[EndTime "14:07:30 PDT"]
[Termination "enriquetejedor won by resignation"]

1. e4 {[%clk 0:02:36.3]} 1... c5 {[%clk 0:02:59.2]} 2. Nf3 {[%clk 0:02:36.5]}
2... d6 {[%clk 0:03:00.2]} 3. d4 {[%clk 0:02:37.9]} 3... cxd4 {[%clk 0:03:01.2]}
4. Nxd4 {[%clk 0:02:39.8]} 4... Nf6 {[%clk 0:03:02]} 5. Nc3 {[%clk 0:02:40.5]}
5... a6 {[%clk 0:03:03.5]} 6. Bg5 {[%clk 0:02:29.7]} 6... e6 {[%clk 0:03:04.2]}
7. f4 {[%clk 0:02:21]} 7... h6 {[%clk 0:03:04.8]} 8. Bh4 {[%clk 0:02:21.3]} 8...
Qb6 {[%clk 0:03:03.1]} 9. Qd2 {[%clk 0:02:07.9]} 9... Qxb2 {[%clk 0:02:59.2]}
10. Rb1 {[%clk 0:02:09.2]} 10... Qa3 {[%clk 0:02:59.4]} 11. e5 {[%clk
0:02:10.2]} 11... g5 {[%clk 0:01:54.1]} 12. fxg5 {[%clk 0:02:00.3]} 12... dxe5
{[%clk 0:01:53.7]} 13. g6 {[%clk 0:01:41.1]} 13... Be7 {[%clk 0:01:13.9]} 14.
gxf7+ {[%clk 0:01:27.9]} 14... Kxf7 {[%clk 0:00:52.5]} 15. Nf3 {[%clk
0:01:29.8]} 15... Nc6 {[%clk 0:00:49.1]} 16. Bd3 {[%clk 0:01:19.8]} 16... e4
{[%clk 0:00:25]} 17. Nxe4 {[%clk 0:00:37.6]} 17... Nxe4 {[%clk 0:00:21.3]} 18.
Bxe4 {[%clk 0:00:39.5]} 18... Bb4 {[%clk 0:00:21.3]} 19. Rxb4 {[%clk 0:00:41.1]}
19... Qxb4 {[%clk 0:00:21.5]} 20. Qxb4 {[%clk 0:00:42.4]} 20... Nxb4 {[%clk
0:00:22.1]} 21. Ne5+ {[%clk 0:00:42.3]} 21... Kg7 {[%clk 0:00:22.1]} 22. O-O
{[%clk 0:00:32.9]} 22... Rf8 {[%clk 0:00:21.8]} 23. Rd1 {[%clk 0:00:28.5]} 23...
Nd5 {[%clk 0:00:22.6]} 24. c4 {[%clk 0:00:27.2]} 24... Nc3 {[%clk 0:00:22.5]}
25. Re1 {[%clk 0:00:24.6]} 25... Nxe4 {[%clk 0:00:23]} 26. Rxe4 {[%clk 0:00:16]}
26... b5 {[%clk 0:00:23.8]} 27. c5 {[%clk 0:00:15.4]} 27... Ra7 {[%clk
0:00:22.7]} 28. Rg4+ {[%clk 0:00:14.7]} 28... Kh7 {[%clk 0:00:22.9]} 29. h3
{[%clk 0:00:10.8]} 29... Rg7 {[%clk 0:00:19.2]} 30. Rd4 {[%clk 0:00:11.9]} 30...
Rf5 {[%clk 0:00:17.8]} 31. Re4 {[%clk 0:00:12.6]} 31... Bb7 {[%clk 0:00:16.6]}
32. c6 {[%clk 0:00:12.3]} 32... Rxe5 {[%clk 0:00:17.4]} 33. cxb7 {[%clk
0:00:10.3]} 33... Rxb7 {[%clk 0:00:15.1]} 34. Rxe5 {[%clk 0:00:10.4]} 34... Rb6
{[%clk 0:00:16.4]} 35. Rc5 {[%clk 0:00:09.8]} 35... Kg6 {[%clk 0:00:17]} 36. Bf2
{[%clk 0:00:09.7]} 36... b4 {[%clk 0:00:15.8]} 37. Rg5+ {[%clk 0:00:10]} 37...
hxg5 {[%clk 0:00:15.3]} 38. Bxb6 {[%clk 0:00:10.2]} 38... Kf5 {[%clk 0:00:16.5]}
39. Ba5 {[%clk 0:00:10.4]} 1-0

[Event "*** Titled Tuesday Blitz"]
[Site "Chess.com"]
[Date "2019.07.02"]
[Round "5"]
[White "colegiodemadrid"]
[Black "Natalya_Buksa"]
[Result "1-0"]
[WhiteElo "2450"]
[BlackElo "2443"]
[TimeControl "180+2"]
[EndTime "14:07:32 PDT"]
[Termination "colegiodemadrid won by checkmate"]

1. e4 {[%clk 0:03:01.9]} 1... c5 {[%clk 0:02:59.6]} 2. Nf3 {[%clk 0:02:56.5]}
2... Nc6 {[%clk 0:02:59.8]} 3. d4 {[%clk 0:02:55.5]} 3... cxd4 {[%clk 0:03:01]}
4. Nxd4 {[%clk 0:02:57]} 4... Nf6 {[%clk 0:03:02.3]} 5. Nc3 {[%clk 0:02:58.5]}
5... e5 {[%clk 0:03:03.2]} 6. Ndb5 {[%clk 0:03:00.1]} 6... d6 {[%clk 0:03:04.2]}
7. Bg5 {[%clk 0:03:01.4]} 7... a6 {[%clk 0:03:05.5]} 8. Na3 {[%clk 0:03:02.9]}
8... b5 {[%clk 0:03:06.8]} 9. Nd5 {[%clk 0:03:04.6]} 9... Be7 {[%clk 0:03:06.6]}
10. Bxf6 {[%clk 0:03:06.1]} 10... Bxf6 {[%clk 0:03:07.8]} 11. c3 {[%clk
0:03:07.6]} 11... O-O {[%clk 0:03:06.2]} 12. Nc2 {[%clk 0:03:08.6]} 12... Rb8
{[%clk 0:03:06.8]} 13. a4 {[%clk 0:03:08.5]} 13... b4 {[%clk 0:03:05.8]} 14.
Ncxb4 {[%clk 0:03:06.7]} 14... Nxb4 {[%clk 0:03:06.1]} 15. Nxb4 {[%clk 0:02:49]}
15... a5 {[%clk 0:03:04.2]} 16. Nc6 {[%clk 0:02:48.1]} 16... Qb6 {[%clk
0:03:04.5]} 17. Nxb8 {[%clk 0:02:48.9]} 17... Qxb8 {[%clk 0:03:05.8]} 18. Bb5
{[%clk 0:02:44]} 18... Bb7 {[%clk 0:03:06]} 19. Qd3 {[%clk 0:02:40.1]} 19... Qa8
{[%clk 0:03:07]} 20. f3 {[%clk 0:02:40.1]} 20... Qa7 {[%clk 0:03:08.2]} 21. Ke2
{[%clk 0:02:40.9]} 21... Rd8 {[%clk 0:03:06]} 22. Bc4 {[%clk 0:02:35.4]} 22...
Rc8 {[%clk 0:02:55.9]} 23. Bd5 {[%clk 0:02:32.8]} 23... Ba6 {[%clk 0:02:52.8]}
24. c4 {[%clk 0:02:33.5]} 24... Rb8 {[%clk 0:02:52.9]} 25. b3 {[%clk 0:02:32.3]}
25... Bg5 {[%clk 0:02:53.8]} 26. g3 {[%clk 0:02:28.1]} 26... Qc5 {[%clk
0:02:54.5]} 27. Rhf1 {[%clk 0:02:23.4]} 27... Bc8 {[%clk 0:02:52.6]} 28. h4
{[%clk 0:02:11.6]} 28... Bh6 {[%clk 0:02:51.6]} 29. Rfd1 {[%clk 0:01:59.7]}
29... Kf8 {[%clk 0:02:39.8]} 30. Rdb1 {[%clk 0:01:58.3]} 30... g6 {[%clk
0:02:30.2]} 31. b4 {[%clk 0:01:57.2]} 31... axb4 {[%clk 0:02:29.1]} 32. a5
{[%clk 0:01:55]} 32... Ba6 {[%clk 0:02:27.4]} 33. Rb3 {[%clk 0:01:50.5]} 33...
f5 {[%clk 0:02:23.5]} 34. exf5 {[%clk 0:01:48.3]} 34... Kg7 {[%clk 0:02:24.3]}
35. fxg6 {[%clk 0:01:46.7]} 35... hxg6 {[%clk 0:02:24.6]} 36. Kf1 {[%clk
0:01:46]} 36... Rb5 {[%clk 0:02:17.1]} 37. Kg2 {[%clk 0:01:38.3]} 37... Rxa5
{[%clk 0:02:17.4]} 38. Rxa5 {[%clk 0:01:31.9]} 38... Qxa5 {[%clk 0:02:18.4]} 39.
Qb1 {[%clk 0:01:31.3]} 39... Bd2 {[%clk 0:02:16.3]} 40. h5 {[%clk 0:01:29.7]}
40... gxh5 {[%clk 0:02:15]} 41. Qf5 {[%clk 0:01:30.3]} 41... Qc7 {[%clk
0:01:53.6]} 42. Qxh5 {[%clk 0:01:21.8]} 42... Bc8 {[%clk 0:01:52.8]} 43. Rb2
{[%clk 0:01:16.5]} 43... Be3 {[%clk 0:01:34.8]} 44. Rxb4 {[%clk 0:01:14.4]}
44... Qa7 {[%clk 0:01:36.7]} 45. Rb7+ {[%clk 0:00:39.9]} 45... Bxb7 {[%clk
0:01:29.9]} 46. Qf7+ {[%clk 0:00:40.7]} 46... Kh6 {[%clk 0:01:30.9]} 47. Qf8+
{[%clk 0:00:29.5]} 47... Kg5 {[%clk 0:00:50.9]} 48. Qg7+ {[%clk 0:00:23.8]}
48... Kf5 {[%clk 0:00:51.8]} 49. g4+ {[%clk 0:00:20.1]} 49... Kf4 {[%clk
0:00:52.1]} 50. Qf6# {[%clk 0:00:21.1]} 1-0

[Event "*** Titled Tuesday Blitz"]
[Site "Chess.com"]
[Date "2019.07.02"]
[Round "5"]
[White "Vadim_Biliy"]
[Black "Kawhi_Leonard2"]
[Result "1/2-1/2"]
[WhiteElo "2220"]
[BlackElo "2305"]
[TimeControl "180+2"]
[EndTime "14:07:43 PDT"]
[Termination "Game drawn by agreement"]

1. e4 {[%clk 0:03:01.9]} 1... c5 {[%clk 0:02:58.5]} 2. Nf3 {[%clk 0:02:58.7]}
2... d6 {[%clk 0:02:59.2]} 3. d4 {[%clk 0:02:59.4]} 3... cxd4 {[%clk 0:03:00]}
4. Nxd4 {[%clk 0:03:01]} 4... Nf6 {[%clk 0:03:01.3]} 5. Nc3 {[%clk 0:03:00.8]}
5... g6 {[%clk 0:03:02.7]} 6. g3 {[%clk 0:03:01.5]} 6... Nc6 {[%clk 0:03:02.1]}
7. Nde2 {[%clk 0:02:58.1]} 7... h5 {[%clk 0:02:57.8]} 8. h3 {[%clk 0:02:55.1]}
8... Bd7 {[%clk 0:02:53.7]} 9. Bg2 {[%clk 0:02:55.3]} 9... Qc8 {[%clk
0:02:53.3]} 10. Nf4 {[%clk 0:02:44]} 10... Bg7 {[%clk 0:02:52.8]} 11. Ncd5
{[%clk 0:02:33.6]} 11... Ne5 {[%clk 0:02:46.4]} 12. c3 {[%clk 0:02:31.2]} 12...
b5 {[%clk 0:02:19.1]} 13. Be3 {[%clk 0:02:28.5]} 13... Nc4 {[%clk 0:02:15.6]}
14. Bd4 {[%clk 0:02:13.5]} 14... Nxb2 {[%clk 0:01:39.6]} 15. Qe2 {[%clk
0:02:11.6]} 15... Nc4 {[%clk 0:01:34.3]} 16. Nxf6+ {[%clk 0:02:07.4]} 16... Bxf6
{[%clk 0:01:24]} 17. Bxf6 {[%clk 0:02:07.6]} 17... exf6 {[%clk 0:01:25.1]} 18.
Nd5 {[%clk 0:02:08.5]} 18... Qd8 {[%clk 0:01:13.6]} 19. Qf3 {[%clk 0:01:53.4]}
19... Ne5 {[%clk 0:00:46.5]} 20. Qxf6 {[%clk 0:01:46.6]} 20... Qxf6 {[%clk
0:00:46.5]} 21. Nxf6+ {[%clk 0:01:46.4]} 21... Ke7 {[%clk 0:00:46.7]} 22. Nxd7
{[%clk 0:01:41.2]} 22... Kxd7 {[%clk 0:00:47.5]} 23. f4 {[%clk 0:01:40.8]} 23...
Nd3+ {[%clk 0:00:41.1]} 24. Ke2 {[%clk 0:01:37.4]} 24... Nc5 {[%clk 0:00:42.2]}
25. Rhd1 {[%clk 0:01:29.9]} 25... Rhe8 {[%clk 0:00:15.2]} 26. e5 {[%clk
0:01:25.6]} 26... Rad8 {[%clk 0:00:10.7]} 27. Rxd6+ {[%clk 0:01:24.5]} 27... Kc7
{[%clk 0:00:12]} 28. Rad1 {[%clk 0:01:17.7]} 28... Na4 {[%clk 0:00:11.1]} 29.
Rxd8 {[%clk 0:00:57.6]} 29... Nxc3+ {[%clk 0:00:11]} 30. Ke3 {[%clk 0:00:41.2]}
30... Rxd8 {[%clk 0:00:12.9]} 31. Rc1 {[%clk 0:00:38.3]} 31... b4 {[%clk
0:00:14]} 32. a3 {[%clk 0:00:37.2]} 32... a5 {[%clk 0:00:15.1]} 33. axb4 {[%clk
0:00:37.9]} 33... axb4 {[%clk 0:00:16.3]} 34. g4 {[%clk 0:00:35.6]} 34... hxg4
{[%clk 0:00:16.3]} 35. hxg4 {[%clk 0:00:35.7]} 35... Kb6 {[%clk 0:00:18.2]} 36.
f5 {[%clk 0:00:35.1]} 36... gxf5 {[%clk 0:00:18.5]} 37. gxf5 {[%clk 0:00:35.4]}
37... Re8 {[%clk 0:00:15.5]} 38. e6 {[%clk 0:00:20.6]} 38... fxe6 {[%clk
0:00:16]} 39. fxe6 {[%clk 0:00:21.5]} 39... Rxe6+ {[%clk 0:00:17]} 40. Kd3
{[%clk 0:00:22.9]} 40... Kc5 {[%clk 0:00:17.2]} 41. Bf3 {[%clk 0:00:21.8]} 41...
Rf6 {[%clk 0:00:17]} 42. Bb7 {[%clk 0:00:19.8]} 42... Rg6 {[%clk 0:00:13.1]} 43.
Re1 {[%clk 0:00:17.9]} 43... Rg3+ {[%clk 0:00:13.3]} 44. Re3 {[%clk 0:00:18.3]}
44... Rxe3+ {[%clk 0:00:13.2]} 45. Kxe3 {[%clk 0:00:19.5]} 45... b3 {[%clk
0:00:11.9]} 1/2-1/2

[Event "*** Titled Tuesday Blitz"]
[Site "Chess.com"]
[Date "2019.07.02"]
[Round "5"]
[White "Bad4life"]
[Black "Witik"]
[Result "0-1"]
[WhiteElo "2357"]
[BlackElo "2536"]
[TimeControl "180+2"]
[EndTime "14:07:44 PDT"]
[Termination "Witik won on time"]

1. e4 {[%clk 0:03:01.9]} 1... c6 {[%clk 0:03:00.8]} 2. Nc3 {[%clk 0:03:02.8]}
2... d5 {[%clk 0:03:02.7]} 3. Qe2 {[%clk 0:03:03.9]} 3... Nf6 {[%clk 0:02:52.5]}
4. e5 {[%clk 0:03:02.1]} 4... Nfd7 {[%clk 0:02:43.2]} 5. g3 {[%clk 0:02:57.2]}
5... e6 {[%clk 0:02:42]} 6. Bg2 {[%clk 0:02:57]} 6... c5 {[%clk 0:02:43.2]} 7.
f4 {[%clk 0:02:57.7]} 7... Nc6 {[%clk 0:02:44.4]} 8. Nf3 {[%clk 0:02:56.1]} 8...
Be7 {[%clk 0:02:44.7]} 9. O-O {[%clk 0:02:56.7]} 9... O-O {[%clk 0:02:45.8]} 10.
Kh1 {[%clk 0:02:58.2]} 10... Rb8 {[%clk 0:02:42.9]} 11. d4 {[%clk 0:02:52.3]}
11... cxd4 {[%clk 0:02:28.2]} 12. Nb5 {[%clk 0:02:53.1]} 12... Qb6 {[%clk
0:02:25.4]} 13. Rd1 {[%clk 0:02:51]} 13... d3 {[%clk 0:02:11.8]} 14. Qxd3 {[%clk
0:02:47.1]} 14... Nc5 {[%clk 0:01:58.1]} 15. Qe2 {[%clk 0:02:15.7]} 15... Ne4
{[%clk 0:01:57.2]} 16. Be3 {[%clk 0:02:15.9]} 16... Bc5 {[%clk 0:01:58.3]} 17.
Bxc5 {[%clk 0:02:16.7]} 17... Qxc5 {[%clk 0:01:57.9]} 18. Nbd4 {[%clk
0:02:13.6]} 18... Bd7 {[%clk 0:01:52.3]} 19. c3 {[%clk 0:02:10.2]} 19... b5
{[%clk 0:01:50.3]} 20. a3 {[%clk 0:01:55]} 20... a5 {[%clk 0:01:50.2]} 21. Rac1
{[%clk 0:01:50.2]} 21... Qb6 {[%clk 0:01:47.6]} 22. b4 {[%clk 0:01:28.7]} 22...
Rfc8 {[%clk 0:01:45.4]} 23. Bf1 {[%clk 0:01:11.1]} 23... Nxd4 {[%clk 0:01:38.3]}
24. Rxd4 {[%clk 0:00:44.2]} 24... Nxc3 {[%clk 0:01:34.7]} 25. Qb2 {[%clk
0:00:29.1]} 25... Ne4 {[%clk 0:01:24]} 26. Rcd1 {[%clk 0:00:26.3]} 26... h6
{[%clk 0:01:14.4]} 27. Ne1 {[%clk 0:00:16.9]} 27... Rc7 {[%clk 0:01:05.2]} 28.
Bg2 {[%clk 0:00:15.9]} 28... Bc6 {[%clk 0:00:50.5]} 29. Nd3 {[%clk 0:00:12.3]}
29... Bb7 {[%clk 0:00:44.7]} 30. Bxe4 {[%clk 0:00:07]} 30... dxe4 {[%clk
0:00:46.1]} 31. Nc5 {[%clk 0:00:08.5]} 31... e3+ {[%clk 0:00:47.7]} 32. Kg1
{[%clk 0:00:07.7]} 32... Bd5 {[%clk 0:00:45.1]} 33. Qe2 {[%clk 0:00:06.9]} 33...
axb4 {[%clk 0:00:39.9]} 34. axb4 {[%clk 0:00:07.5]} 34... Rxc5 {[%clk
0:00:36.2]} 35. bxc5 {[%clk 0:00:08.3]} 35... Qxc5 {[%clk 0:00:37.8]} 36. Qxe3
{[%clk 0:00:09.5]} 36... b4 {[%clk 0:00:39.4]} 37. Qf2 {[%clk 0:00:05]} 37... b3
{[%clk 0:00:38.1]} 38. Rb1 {[%clk 0:00:05.4]} 38... Ra8 {[%clk 0:00:35]} 39. Rd2
{[%clk 0:00:03.8]} 39... Qc3 {[%clk 0:00:33.7]} 40. Rdb2 {[%clk 0:00:03.7]}
40... Ra4 {[%clk 0:00:28]} 41. h3 {[%clk 0:00:03.7]} 41... Rd4 {[%clk
0:00:23.5]} 0-1

[Event "*** Titled Tuesday Blitz"]
[Site "Chess.com"]
[Date "2019.07.02"]
[Round "5"]
[White "Samantha_Ross"]
[Black "Perecke"]
[Result "1-0"]
[WhiteElo "2032"]
[BlackElo "2038"]
[TimeControl "180+2"]
[EndTime "14:07:50 PDT"]
[Termination "Samantha_Ross won on time"]

1. e4 {[%clk 0:03:00]} 1... c5 {[%clk 0:02:45.2]} 2. Nf3 {[%clk 0:03:01]} 2...
e6 {[%clk 0:02:46.3]} 3. b4 {[%clk 0:03:01.1]} 3... cxb4 {[%clk 0:02:45.6]} 4.
a3 {[%clk 0:03:02.3]} 4... bxa3 {[%clk 0:02:46.2]} 5. c3 {[%clk 0:03:02.9]} 5...
Nc6 {[%clk 0:02:45.7]} 6. d4 {[%clk 0:03:04]} 6... d5 {[%clk 0:02:43.5]} 7. e5
{[%clk 0:03:05.1]} 7... f6 {[%clk 0:02:38.8]} 8. exf6 {[%clk 0:03:03]} 8... Nxf6
{[%clk 0:02:39.5]} 9. Bd3 {[%clk 0:03:04.9]} 9... Bd6 {[%clk 0:02:34.3]} 10. O-O
{[%clk 0:03:05.4]} 10... O-O {[%clk 0:02:34.9]} 11. h3 {[%clk 0:03:04.6]} 11...
Bd7 {[%clk 0:02:36]} 12. Re1 {[%clk 0:03:04.5]} 12... h6 {[%clk 0:01:45.3]} 13.
Bxa3 {[%clk 0:03:03.4]} 13... Bxa3 {[%clk 0:01:45.4]} 14. Nxa3 {[%clk
0:03:03.1]} 14... a6 {[%clk 0:01:42.5]} 15. Nc2 {[%clk 0:02:59.4]} 15... Rc8
{[%clk 0:01:42.9]} 16. Ne3 {[%clk 0:02:57]} 16... Qc7 {[%clk 0:01:25]} 17. Ng4
{[%clk 0:02:56.1]} 17... Nxg4 {[%clk 0:00:56.6]} 18. hxg4 {[%clk 0:02:58]} 18...
Qf4 {[%clk 0:00:46.1]} 19. Bc2 {[%clk 0:02:46.7]} 19... Qxg4 {[%clk 0:00:35.7]}
20. Qd3 {[%clk 0:02:47.6]} 20... Rxf3 {[%clk 0:00:12.3]} 21. Qxf3 {[%clk
0:02:42.8]} 21... Qxf3 {[%clk 0:00:13.5]} 22. gxf3 {[%clk 0:02:44.7]} 22... Nxd4
{[%clk 0:00:14.7]} 23. cxd4 {[%clk 0:02:38.9]} 23... Rxc2 {[%clk 0:00:16.6]} 24.
Reb1 {[%clk 0:02:38.5]} 24... Bb5 {[%clk 0:00:16]} 25. Rc1 {[%clk 0:02:36]}
25... Rd2 {[%clk 0:00:13.4]} 26. Rc8+ {[%clk 0:02:36.4]} 26... Kh7 {[%clk
0:00:13.2]} 27. Rc7 {[%clk 0:02:37.9]} 27... Rxd4 {[%clk 0:00:13]} 28. Rxb7
{[%clk 0:02:37.9]} 28... Rf4 {[%clk 0:00:13.2]} 29. Rc1 {[%clk 0:02:36.3]} 29...
Rf6 {[%clk 0:00:04.2]} 30. Rcc7 {[%clk 0:02:32.7]} 30... Rg6+ {[%clk 0:00:05.5]}
31. Kh2 {[%clk 0:02:34.6]} 31... d4 {[%clk 0:00:06.8]} 32. Rb6 {[%clk
0:02:33.6]} 32... d3 {[%clk 0:00:07.5]} 33. Rd6 {[%clk 0:02:34.9]} 33... e5
{[%clk 0:00:06]} 34. Rd8 {[%clk 0:02:27]} 34... Rf6 {[%clk 0:00:04.7]} 35. Kg3
{[%clk 0:02:26]} 35... Kg6 {[%clk 0:00:05.7]} 36. Rc5 {[%clk 0:02:10.7]} 36...
Rf7 {[%clk 0:00:04]} 37. Rxe5 {[%clk 0:02:10.2]} 37... Bc6 {[%clk 0:00:05.2]}
38. Rxd3 {[%clk 0:02:07.9]} 38... Rf6 {[%clk 0:00:05]} 39. Re7 {[%clk
0:02:02.3]} 39... Rf7 {[%clk 0:00:04.5]} 40. Rd6+ {[%clk 0:01:58.9]} 40... Rf6
{[%clk 0:00:05.5]} 41. Ree6 {[%clk 0:01:59.1]} 41... Be8 {[%clk 0:00:04.7]} 42.
Rxa6 {[%clk 0:01:56.3]} 42... Bf7 {[%clk 0:00:04.3]} 43. Rxf6+ {[%clk
0:01:36.1]} 43... gxf6 {[%clk 0:00:06.2]} 44. Kf4 {[%clk 0:01:38]} 44... Bd5
{[%clk 0:00:06.9]} 45. Rd6 {[%clk 0:01:36.9]} 45... Ba8 {[%clk 0:00:07.4]} 46.
Kg4 {[%clk 0:01:37.5]} 46... h5+ {[%clk 0:00:07.9]} 47. Kg3 {[%clk 0:01:37.4]}
47... Bb7 {[%clk 0:00:08.1]} 48. Rb6 {[%clk 0:01:36.6]} 48... Bd5 {[%clk
0:00:08.7]} 49. Rb5 {[%clk 0:01:37.1]} 49... Bc6 {[%clk 0:00:09.4]} 50. Rc5
{[%clk 0:01:38.6]} 50... Bb7 {[%clk 0:00:10.3]} 51. f4 {[%clk 0:01:40.1]} 51...
Be4 {[%clk 0:00:10]} 52. Kh4 {[%clk 0:01:40.6]} 52... Bf3 {[%clk 0:00:11]} 53.
f5+ {[%clk 0:01:39.7]} 53... Kh6 {[%clk 0:00:07.4]} 54. Rc7 {[%clk 0:01:31.2]}
54... Bd5 {[%clk 0:00:03.6]} 55. Rd7 {[%clk 0:01:27.8]} 55... Bc4 {[%clk
0:00:03.5]} 56. Rd8 {[%clk 0:01:15.5]} 1-0

[Event "*** Titled Tuesday Blitz"]
[Site "Chess.com"]
[Date "2019.07.02"]
[Round "5"]
[White "PNEPaul"]
[Black "chesstatour"]
[Result "0-1"]
[WhiteElo "1829"]
[BlackElo "2011"]
[TimeControl "180+2"]
[EndTime "14:07:51 PDT"]
[Termination "chesstatour won by resignation"]

1. e4 {[%clk 0:02:06.2]} 1... c6 {[%clk 0:03:00]} 2. d4 {[%clk 0:02:05.2]} 2...
d5 {[%clk 0:03:01.9]} 3. e5 {[%clk 0:02:05]} 3... c5 {[%clk 0:03:03]} 4. c3
{[%clk 0:02:01.9]} 4... Nc6 {[%clk 0:03:02.4]} 5. Bd3 {[%clk 0:02:01.2]} 5...
cxd4 {[%clk 0:03:01.8]} 6. Nf3 {[%clk 0:01:55.6]} 6... dxc3 {[%clk 0:03:00.8]}
7. bxc3 {[%clk 0:01:56.1]} 7... Bg4 {[%clk 0:02:58.5]} 8. Bf4 {[%clk 0:01:56.8]}
8... e6 {[%clk 0:02:58.1]} 9. O-O {[%clk 0:01:54.5]} 9... Bc5 {[%clk 0:02:54.3]}
10. h3 {[%clk 0:01:52.5]} 10... Bh5 {[%clk 0:02:42.1]} 11. Nbd2 {[%clk
0:01:52.3]} 11... Nge7 {[%clk 0:02:42.1]} 12. g4 {[%clk 0:01:39.7]} 12... Bg6
{[%clk 0:02:39.9]} 13. Be2 {[%clk 0:01:34.7]} 13... h5 {[%clk 0:02:27.9]} 14.
Qb3 {[%clk 0:01:30.4]} 14... Qc7 {[%clk 0:01:58.1]} 15. Kg2 {[%clk 0:01:27.5]}
15... Be4 {[%clk 0:01:40.8]} 16. Nxe4 {[%clk 0:01:12.8]} 16... dxe4 {[%clk
0:01:42.7]} 17. Ng5 {[%clk 0:01:12.2]} 17... Ng6 {[%clk 0:01:34.8]} 18. Bg3
{[%clk 0:01:04.8]} 18... h4 {[%clk 0:01:27]} 19. Bh2 {[%clk 0:01:03.1]} 19...
Ngxe5 {[%clk 0:00:58.1]} 20. Nxe4 {[%clk 0:01:03.2]} 20... Be7 {[%clk
0:00:53.4]} 21. f4 {[%clk 0:00:55.4]} 21... Nd7 {[%clk 0:00:44.6]} 22. f5 {[%clk
0:00:53.4]} 22... e5 {[%clk 0:00:43.5]} 23. Rad1 {[%clk 0:00:24.7]} 23... Rd8
{[%clk 0:00:41]} 24. g5 {[%clk 0:00:15.4]} 24... Nc5 {[%clk 0:00:31.4]} 25. Qc2
{[%clk 0:00:14.1]} 25... Rxd1 {[%clk 0:00:27.1]} 26. Rxd1 {[%clk 0:00:13.6]}
26... Nxe4 {[%clk 0:00:28.2]} 27. Qxe4 {[%clk 0:00:14.1]} 27... Bxg5 {[%clk
0:00:28.2]} 28. Bc4 {[%clk 0:00:12.5]} 28... O-O {[%clk 0:00:27.3]} 29. Qg4
{[%clk 0:00:12.9]} 29... Bf6 {[%clk 0:00:26.5]} 30. Rf1 {[%clk 0:00:13.8]} 30...
Na5 {[%clk 0:00:20.1]} 31. Bd3 {[%clk 0:00:13.6]} 31... Qxc3 {[%clk 0:00:20.4]}
32. Bb1 {[%clk 0:00:14.2]} 32... Rd8 {[%clk 0:00:18.9]} 33. Rf2 {[%clk
0:00:13.2]} 33... Rd2 {[%clk 0:00:16.7]} 34. Qf3 {[%clk 0:00:12.1]} 34... Qxf3+
{[%clk 0:00:16.3]} 35. Kxf3 {[%clk 0:00:12.2]} 35... Rxf2+ {[%clk 0:00:15.8]}
36. Kxf2 {[%clk 0:00:13.3]} 36... Kf8 {[%clk 0:00:14.5]} 37. Kf3 {[%clk
0:00:14.2]} 37... Ke7 {[%clk 0:00:15]} 38. Ke4 {[%clk 0:00:15.2]} 38... Kd6
{[%clk 0:00:14.4]} 39. Bc2 {[%clk 0:00:15.9]} 39... Nc4 {[%clk 0:00:12.3]} 40.
Bb3 {[%clk 0:00:16]} 40... Nd2+ {[%clk 0:00:12.5]} 41. Kd3 {[%clk 0:00:16.2]}
41... Nxb3 {[%clk 0:00:14.4]} 42. axb3 {[%clk 0:00:17.2]} 42... Kc5 {[%clk
0:00:14.3]} 43. Bg1+ {[%clk 0:00:17]} 43... Kb4 {[%clk 0:00:14.8]} 44. Kc2
{[%clk 0:00:16.9]} 44... a6 {[%clk 0:00:12.4]} 45. Be3 {[%clk 0:00:17.3]} 45...
b5 {[%clk 0:00:11.8]} 46. Bd2+ {[%clk 0:00:18.1]} 46... Kc5 {[%clk 0:00:13]} 47.
Be3+ {[%clk 0:00:19.1]} 47... Kd5 {[%clk 0:00:13.6]} 48. Kd3 {[%clk 0:00:20.2]}
48... a5 {[%clk 0:00:13.9]} 49. Bb6 {[%clk 0:00:20.8]} 49... a4 {[%clk
0:00:14.8]} 50. bxa4 {[%clk 0:00:21.2]} 50... bxa4 {[%clk 0:00:16.7]} 0-1